fUST/lending_fUST_20240525
["ID","MTS","AMOUNT","RATE_DAILY","PERIOD"]
[327915957,1716625850948,-166.73377855,0.00019178,2]
[327915958,1716625850958,-500.0,0.00019178,2]
[327915959,1716625850967,-500.0,0.00019178,2]
[327915960,1716625850976,-553.19237415,0.00019178,2]
[327915961,1716625850985,-586.15269822,0.00019178,2]
[327915962,1716625850994,-275.47005998,0.00019178,2]
[327915963,1716625851003,-500.0,0.00019178,2]
[327915964,1716625851013,-500.0,0.00019178,2]
[327915965,1716625851022,-500.0,0.00019178,2]
[327915966,1716625851032,-500.0,0.00019178,2]
[327915967,1716625851041,-219.36362496,0.00019178,2]
[327915968,1716625851050,-500.0,0.00019178,2]
[327915969,1716625851059,-500.0,0.00019178,2]
[327915970,1716625851068,-261.9093644,0.00019178,2]
[327915971,1716625851078,-200.0,0.00019178,2]
[327915972,1716625851087,-500.0,0.00019178,2]
[327915973,1716625851097,-168.1486097,0.00019178,2]
[327915974,1716625851106,-175.24908,0.00019178,2]
[327915975,1716625851115,-159.114439,0.00019178,2]
[327915976,1716625851124,-438.1311537,0.00019178,4]
[327915977,1716625851133,-170.145285,0.00019178,2]
[327915978,1716625851143,-452.397226,0.00019178,2]
[327915979,1716625851152,-452.397226,0.00019178,2]
[327915980,1716625851163,-452.397226,0.00019178,2]
[327915981,1716625851172,-452.397226,0.00019178,2]
[327915982,1716625851184,-452.397226,0.00019178,2]
[327915983,1716625851194,-452.397226,0.00019178,2]
[327915984,1716625851203,-452.397226,0.00019178,2]
[327915985,1716625851213,-452.397226,0.00019178,2]
[327915986,1716625851222,-452.397226,0.00019178,2]
[327915987,1716625851232,-452.397226,0.00019178,2]
[327915988,1716625851241,-452.397226,0.00019178,2]
[327915989,1716625851251,-452.397226,0.00019178,2]
[327915990,1716625851261,-452.397226,0.00019178,2]
[327915991,1716625851271,-452.397226,0.00019178,2]
[327915992,1716625851281,-452.397226,0.00019178,2]
[327915993,1716625851290,-452.397226,0.00019178,2]
[327915994,1716625851299,-452.397226,0.00019178,2]
[327915995,1716625851308,-452.397226,0.00019178,2]
[327915996,1716625851318,-452.397226,0.00019178,2]
[327915997,1716625851327,-452.397227,0.00019178,2]
[327915998,1716625851336,-1110.16911,0.00019178,2]
[327915999,1716625851345,-1110.16911,0.00019178,2]
[327916000,1716625851356,-1110.16911,0.00019178,2]
[327916001,1716625851366,-1110.16911,0.00019178,2]
[327916002,1716625851376,-1110.16911,0.00019178,2]
[327916003,1716625851386,-1110.16911,0.00019178,2]
[327916004,1716625851396,-1110.16911,0.00019178,2]
[327916005,1716625851407,-1110.16911,0.00019178,2]
[327916006,1716625851418,-1110.16911,0.00019178,2]
[327916007,1716625851427,-1110.16911,0.00019178,2]
[327916008,1716625851436,-1110.16911,0.00019178,2]
[327916009,1716625851445,-1110.16911,0.00019178,2]
[327916010,1716625851455,-1110.16911,0.00019178,2]
[327916011,1716625851464,-1110.16911,0.00019178,2]
[327916012,1716625851473,-1110.16911,0.00019178,2]
[327916013,1716625851483,-1110.16911,0.00019178,2]
[327916014,1716625851492,-1110.16911,0.00019178,2]
[327916015,1716625851501,-1110.16911,0.00019178,2]
[327916016,1716625851510,-1110.16911,0.00019178,2]
[327916017,1716625851520,-1110.1691,0.00019178,2]
[327916018,1716625851530,-620.0,0.0001932,2]
[327916019,1716625851539,-236.69656973,0.00019791,2]
[327916020,1716625851549,-20890.25207959,0.0002,2]
[327916021,1716625851557,-3089.83014599,0.0002,2]
[327916022,1716625851567,-155.45791053,0.0002,2]
[327916023,1716625851578,-264.40789058,0.0002,2]
[327916024,1716625851588,-400.0,0.0002,2]
[327916025,1716625851597,-6868.39532604,0.0002,5]
[327916026,1716625851607,-527.56828578,0.0002,4]
[327916027,1716625851618,-154.82968734,0.0002,2]
[327916028,1716625851627,-23759.20363393,0.0002,2]
[327916029,1716625851637,-174.76234879,0.0002,2]
[327916030,1716625851646,-236.64991426,0.0002,2]
[327916031,1716625851658,-67852.82951084,0.0002,2]
[327916032,1716625851667,-281.93833182,0.0002,2]
[327916033,1716625851677,-538.11005712,0.0002,2]
[327916034,1716625851686,-363.07348862,0.0002,2]
[327916035,1716625851695,-347.59966996,0.0002025,2]
[327916036,1716625851705,-620.0,0.00020286,2]
[327916037,1716625851715,-535.5,0.00020464,3]
[327916038,1716625851724,-151.0,0.00020464,3]
[327916039,1716625851735,-4695.7305307,0.00021,2]
[327916040,1716625851744,-280.0,0.00021,2]
[327916041,1716625851754,-11398.44618843,0.00021,2]
[327916042,1716625851763,-370.78583593,0.00021234,2]
[327916043,1716625851773,-620.0,0.000213,2]
[327916044,1716625851782,-535.5,0.00021781,3]
[327916045,1716625851792,-151.0,0.00021781,3]
[327916046,1716625851802,-1415.13659855,0.00021916,3]
[327916047,1716625851811,-18504.23,0.00021917,3]
[327916048,1716625851826,-18504.23,0.00021917,3]
[327916049,1716625851836,-18504.23,0.00021917,3]
[327916050,1716625851845,-18504.23,0.00021917,3]
[327916051,1716625851855,-18504.23,0.00021917,3]
[327916052,1716625851865,-18504.23,0.00021917,3]
[327916053,1716625851874,-18504.23,0.00021917,3]
[327916054,1716625851883,-18504.23,0.00021917,3]
[327916055,1716625851896,-18504.23,0.00021917,3]
[327916056,1716625851907,-18504.23,0.00021917,3]
[327916057,1716625851917,-18504.23,0.00021917,3]
[327916058,1716625851926,-18504.23,0.00021917,3]
[327916059,1716625851935,-18504.23,0.00021917,3]
[327916060,1716625851944,-18504.23,0.00021917,3]
[327916061,1716625851953,-18504.23,0.00021917,3]
[327916062,1716625851963,-18504.23,0.00021917,3]
[327916063,1716625851972,-18504.23,0.00021917,3]
[327916064,1716625851982,-18504.23,0.00021917,3]
[327916065,1716625851992,-18504.23,0.00021917,3]
[327916066,1716625852002,-18504.23,0.00021917,3]
[327916067,1716625852011,-18504.23,0.00021917,3]
[327916068,1716625852020,-18504.23,0.00021917,3]
[327916069,1716625852030,-18504.23,0.00021917,3]
[327916070,1716625852039,-18504.29131621,0.00021917,3]
[327916071,1716625852048,-242.443494,0.00021918,2]
[327916072,1716625852058,-242.443494,0.00021918,2]
[327916073,1716625852067,-242.443494,0.00021918,2]
[327916074,1716625852077,-242.443494,0.00021918,2]
[327916075,1716625852087,-242.443494,0.00021918,2]
[327916076,1716625852096,-242.443494,0.00021918,2]
[327916077,1716625852105,-166.666666,0.00021918,2]
[327916078,1716625852115,-242.443494,0.00021918,2]
[327916079,1716625852124,-242.443494,0.00021918,2]
[327916080,1716625852133,-242.443494,0.00021918,2]
[327916081,1716625852143,-242.443494,0.00021918,2]
[327916082,1716625852152,-242.443494,0.00021918,2]
[327916083,1716625852163,-242.443494,0.00021918,2]
[327916084,1716625852172,-242.443494,0.00021918,2]
[327916085,1716625852181,-242.443494,0.00021918,2]
[327916086,1716625852190,-242.443494,0.00021918,2]
[327916087,1716625852200,-242.443494,0.00021918,2]
[327916088,1716625852210,-242.443494,0.00021918,2]
[327916089,1716625852220,-242.443494,0.00021918,2]
[327916090,1716625852229,-242.443494,0.00021918,2]
[327916091,1716625852239,-242.443493,0.00021918,2]
[327916092,1716625852248,-9222.155503,0.00021918,2]
[327916093,1716625852258,-12806.01953772,0.00022,2]
[327916094,1716625852268,-159.83564251,0.00022,2]
[327916095,1716625852277,-151.02540116,0.00022,2]
[327916096,1716625852286,-1000.0,0.00022,2]
[327916097,1716625852295,-260.57533514,0.00022,2]
[327916098,1716625852305,-154.84515485,0.00022,2]
[327916099,1716625852314,-329.27811185,0.000223,6]
[327916100,1716625852324,-620.0,0.00022365,2]
[327916101,1716625852333,-166.666666,0.00022431,2]
[327916102,1716625852342,-1000.0,0.000225,2]
[327916103,1716625852352,-296.2207546,0.00022579,2]
[327916104,1716625852362,-291.6248309,0.00022653,2]
[327916105,1716625852371,-291.6248309,0.00022653,2]
[327916106,1716625852380,-291.6248309,0.00022653,2]
[327916107,1716625852390,-291.6248309,0.00022653,2]
[327916108,1716625852399,-291.6248309,0.00022653,2]
[327916109,1716625852412,-291.6248309,0.00022653,2]
[327916110,1716625852421,-291.6248309,0.00022653,2]
[327916111,1716625852431,-291.6248309,0.00022653,2]
[327916112,1716625852440,-291.6248309,0.00022653,2]
[327916113,1716625852448,-291.6248309,0.00022653,2]
[327916114,1716625852457,-291.6248309,0.00022653,2]
[327916115,1716625852467,-291.6248309,0.00022653,2]
[327916116,1716625852476,-153.0,0.00022728,2]
[327916117,1716625852485,-153.0,0.00022728,2]
[327916118,1716625852495,-153.0,0.00022728,2]
[327916119,1716625852504,-153.0,0.00022728,2]
[327916120,1716625852512,-153.0,0.00022728,2]
[327916121,1716625852527,-173.0927842,0.00022728,2]
[327916122,1716625852537,-153.0,0.00022728,2]
[327916123,1716625852545,-153.0,0.00022728,2]
[327916124,1716625852553,-154.2026827,0.00022728,2]
[327916125,1716625852562,-153.0,0.00022728,2]
[327916126,1716625852570,-153.0,0.00022728,2]
[327916127,1716625852580,-306.0,0.00022728,2]
[327916128,1716625852589,-166.666666,0.00022944,2]
[327916129,1716625852694,-3323.92515861,0.00023,2]
[327916130,1716625852704,-155.0356582,0.00023,2]
[327916131,1716625852713,-1000.0,0.00023,2]
[327916132,1716625852723,-466.77736461,0.00023,2]
[327916133,1716625852732,-535.5,0.00023098,3]
[327916134,1716625852741,-151.0,0.00023098,3]
[327916135,1716625852751,-181.48435585,0.000233,4]
[327916136,1716625852760,-166.666666,0.00023456,2]
[327916137,1716625852769,-620.0,0.00023484,2]
[327916138,1716625852779,-1000.0,0.000235,2]
[327916139,1716625852789,-150.83408251,0.00023949,7]
[327916140,1716625852799,-166.666666,0.00023969,2]
[327916141,1716625852808,-206.48145854,0.00023982,2]
[327916142,1716625852818,-7046.6947143,0.00024,2]
[327916143,1716625852832,-187.88755299,0.00024,2]
[327916144,1716625852841,-1440.99240605,0.00024,2]
[327916145,1716625852852,-1000.0,0.00024,2]
[327916146,1716625852862,-1019.40345192,0.00024124,2]
[327916147,1716625852871,-569.107202,0.00024384,2]
[327916148,1716625852881,-513.133568,0.00024384,2]
[327916149,1716625852891,-535.5,0.00024415,5]
[327916150,1716625852901,-150.83408251,0.00024438,4]
[327916151,1716625852914,-166.666666,0.00024482,2]
[327916152,1716625852923,-30883.21501976,0.0002455,3]
[327916153,1716625852933,-160.0,0.00024556,3]
[327916154,1716625852942,-3000.0,0.000246,2]
[327916155,1716625852953,-3000.0,0.0002461,2]
[327916156,1716625852963,-3000.0,0.0002462,2]
[327916157,1716625852972,-3309.40360828,0.00024626,2]
[327916158,1716625852982,-3000.0,0.0002463,2]
[327916159,1716625852992,-3000.0,0.0002464,2]
[327916160,1716625853002,-3000.0,0.0002465,2]
[327916161,1716625853011,-503.0868219,0.00024657,2]
[327916162,1716625853021,-528.15,0.00024657,2]
[327916163,1716625853030,-500.0,0.00024657,2]
[327916164,1716625853039,-500.0,0.00024657,2]
[327916165,1716625853049,-500.28025878,0.00024657,2]
[327916166,1716625853059,-505.48194458,0.00024657,2]
[327916167,1716625853068,-500.0,0.00024657,2]
[327916168,1716625853077,-500.0,0.00024657,2]
[327916169,1716625853086,-158.53560711,0.00024657,2]
[327916170,1716625853096,-500.0,0.00024657,2]
[327916171,1716625853105,-502.714161,0.00024657,2]
[327916172,1716625853115,-502.65421687,0.00024657,2]
[327916173,1716625853124,-513.23471807,0.00024657,2]
[327916174,1716625853133,-505.0,0.00024657,2]
[327916175,1716625853143,-503.12475469,0.00024657,2]
[327916176,1716625853153,-501.88010715,0.00024657,2]
[327916177,1716625853164,-500.0,0.00024657,2]
[327916178,1716625853174,-503.37992577,0.00024657,2]
[327916179,1716625853183,-504.7895519,0.00024657,2]
[327916180,1716625853192,-500.0,0.00024657,2]
[327916181,1716625853202,-505.44044007,0.00024657,2]
[327916182,1716625853211,-500.0,0.00024657,2]
[327916183,1716625853221,-500.0,0.00024657,2]
[327916184,1716625853230,-500.0,0.00024657,2]
[327916185,1716625853240,-500.0,0.00024657,2]
[327916186,1716625853249,-533.18397107,0.00024657,2]
[327916187,1716625853259,-604.84483303,0.00024657,2]
[327916188,1716625853268,-659.81,0.00024657,2]
[327916189,1716625853278,-500.0,0.00024657,2]
[327916190,1716625853287,-500.0,0.00024657,2]
[327916191,1716625853296,-500.0,0.00024657,2]
[327916192,1716625853306,-500.0,0.00024657,2]
[327916193,1716625853315,-500.0,0.00024657,2]
[327916194,1716625853324,-502.38350037,0.00024657,2]
[327916195,1716625853334,-302.60993903,0.00024657,2]
[327916196,1716625853345,-503.89700924,0.00024657,2]
[327916197,1716625853356,-501.6178806,0.00024657,2]
[327916198,1716625853366,-503.96949086,0.00024657,2]
[327916199,1716625853375,-504.11170294,0.00024657,2]
[327916200,1716625853384,-622.21474061,0.00024657,2]
[327916201,1716625853395,-507.85245788,0.00024657,2]
[327916202,1716625853404,-504.71933238,0.00024657,2]
[327916203,1716625853415,-502.56491306,0.00024657,2]
[327916204,1716625853425,-502.71542853,0.00024657,2]
[327916205,1716625853434,-505.20800429,0.00024657,2]
[327916206,1716625853443,-501.76782977,0.00024657,2]
[327916207,1716625853453,-502.97240876,0.00024657,2]
[327916208,1716625853462,-768.52,0.00024657,2]
[327916209,1716625853471,-507.01207707,0.00024657,2]
[327916210,1716625853481,-502.65736296,0.00024657,2]
[327916211,1716625853490,-500.0,0.00024657,2]
[327916212,1716625853499,-506.39542584,0.00024657,2]
[327916213,1716625853508,-504.92159996,0.00024657,2]
[327916214,1716625853518,-500.0,0.00024657,2]
[327916215,1716625853528,-503.30408388,0.00024657,2]
[327916216,1716625853538,-500.0,0.00024657,2]
[327916217,1716625853548,-506.27892874,0.00024657,2]
[327916218,1716625853558,-1008.64319502,0.00024657,2]
[327916219,1716625853568,-501.82240406,0.00024657,2]
[327916220,1716625853579,-503.89232422,0.00024657,2]
[327916221,1716625853588,-503.88033083,0.00024657,2]
[327916222,1716625853598,-500.0,0.00024657,2]
[327916223,1716625853608,-500.0,0.00024657,2]
[327916224,1716625853617,-500.0,0.00024657,2]
[327916225,1716625853626,-503.35501402,0.00024657,2]
[327916226,1716625853635,-500.0,0.00024657,2]
[327916227,1716625853644,-503.26758626,0.00024657,2]
[327916228,1716625853654,-507.11333365,0.00024657,2]
[327916229,1716625853663,-505.63113075,0.00024657,2]
[327916230,1716625853673,-521.22675943,0.00024657,2]
[327916231,1716625853682,-501.1127046,0.00024657,2]
[327916232,1716625853692,-504.13862284,0.00024657,2]
[327916233,1716625853702,-502.55585007,0.00024657,2]
[327916234,1716625853711,-1000.0,0.00024657,2]
[327916235,1716625853721,-1000.0,0.00024657,3]
[327916236,1716625853730,-1000.0,0.00024657,4]
[327916237,1716625853740,-1000.0,0.00024657,5]
[327916238,1716625853749,-502.43956234,0.00024657,2]
[327916239,1716625853758,-1000.0,0.00024657,6]
[327916240,1716625853769,-152.22793412,0.00024657,2]
[327916241,1716625853779,-500.0,0.00024657,2]
[327916242,1716625853790,-500.0,0.00024657,2]
[327916243,1716625853799,-500.0,0.00024657,2]
[327916244,1716625853808,-500.0,0.00024657,2]
[327916245,1716625853823,-500.0,0.00024657,2]
[327916246,1716625853833,-500.0,0.00024657,2]
[327916247,1716625853842,-502.31781342,0.00024657,2]
[327916248,1716625853851,-500.0,0.00024657,2]
[327916249,1716625853863,-500.0,0.00024657,2]
[327916250,1716625853872,-500.0,0.00024657,2]
[327916251,1716625853882,-502.01166646,0.00024657,2]
[327916252,1716625853892,-504.97529281,0.00024657,2]
[327916253,1716625853902,-500.0,0.00024657,2]
[327916254,1716625853914,-489.02365859,0.00024657,2]
[327916255,1716625853922,-517.6495575,0.00024657,2]
[327916256,1716625853931,-500.0,0.00024657,2]
[327916257,1716625853942,-510.25075247,0.00024657,2]
[327916258,1716625853953,-500.0,0.00024657,2]
[327916259,1716625853964,-501.67143849,0.00024657,2]
[327916260,1716625853974,-500.0,0.00024657,2]
[327916261,1716625853984,-500.0,0.00024657,2]
[327916262,1716625853995,-502.21466455,0.00024657,2]
[327916263,1716625854005,-500.0,0.00024657,2]
[327916264,1716625854015,-502.00970111,0.00024657,2]
[327916265,1716625854024,-500.0,0.00024657,2]
[327916266,1716625854033,-502.44871134,0.00024657,2]
[327916267,1716625854042,-500.0,0.00024657,2]
[327916268,1716625854051,-500.0,0.00024657,2]
[327916269,1716625854061,-501.37513413,0.00024657,2]
[327916270,1716625854070,-502.32251966,0.00024657,2]
[327916271,1716625854079,-503.53692954,0.00024657,2]
[327916272,1716625854089,-511.5684687,0.00024657,2]
[327916273,1716625854098,-500.0,0.00024657,2]
[327916274,1716625854108,-501.93682611,0.00024657,2]
[327916275,1716625854117,-500.0,0.00024657,2]
[327916276,1716625854126,-500.0,0.00024657,2]
[327916277,1716625854135,-500.0,0.00024657,2]
[327916278,1716625854145,-500.0,0.00024657,2]
[327916279,1716625854154,-500.0,0.00024657,2]
[327916280,1716625854165,-500.0,0.00024657,2]
[327916281,1716625854175,-502.00812257,0.00024657,2]
[327916282,1716625854184,-500.94239392,0.00024657,2]
[327916283,1716625854194,-500.0,0.00024657,2]
[327916284,1716625854203,-500.0,0.00024657,2]
[327916285,1716625854213,-500.0,0.00024657,2]
[327916286,1716625854223,-500.0,0.00024657,2]
[327916287,1716625854232,-500.0,0.00024657,2]
[327916288,1716625854241,-500.0,0.00024657,2]
[327916289,1716625854250,-500.0,0.00024657,2]
[327916290,1716625854260,-500.0,0.00024657,2]
[327916291,1716625854269,-501.77605001,0.00024657,2]
[327916292,1716625854279,-500.0,0.00024657,2]
[327916293,1716625854289,-537.15,0.00024657,2]
[327916294,1716625854298,-500.0,0.00024657,2]
[327916295,1716625854308,-500.0,0.00024657,2]
[327916296,1716625854317,-500.99780053,0.00024657,2]
[327916297,1716625854327,-500.0,0.00024657,2]
[327916298,1716625854336,-500.0,0.00024657,2]
[327916299,1716625854345,-501.48906618,0.00024657,2]
[327916300,1716625854355,-500.0,0.00024657,2]
[327916301,1716625854365,-500.0,0.00024657,2]
[327916302,1716625854374,-569.03884073,0.00024657,2]
[327916303,1716625854383,-500.0,0.00024657,2]
[327916304,1716625854393,-505.2398275,0.00024657,2]
[327916305,1716625854403,-500.61667613,0.00024657,2]
[327916306,1716625854413,-502.66491854,0.00024657,2]
[327916307,1716625854422,-502.50720807,0.00024657,2]
[327916308,1716625854432,-500.0,0.00024657,2]
[327916309,1716625854441,-570.39,0.00024657,2]
[327916310,1716625854450,-500.0,0.00024657,2]
[327916311,1716625854460,-500.0,0.00024657,2]
[327916312,1716625854469,-500.0,0.00024657,2]
[327916313,1716625854478,-500.0,0.00024657,2]
[327916314,1716625854487,-500.0,0.00024657,2]
[327916315,1716625854497,-356.75373003,0.00024657,2]
[327916316,1716625854507,-500.0,0.00024657,2]
[327916317,1716625854517,-500.0,0.00024657,2]
[327916318,1716625854526,-500.0,0.00024657,2]
[327916319,1716625854535,-500.0,0.00024657,2]
[327916320,1716625854545,-502.03834964,0.00024657,2]
[327916321,1716625854554,-500.0,0.00024657,2]
[327916322,1716625854564,-500.0,0.00024657,2]
[327916323,1716625854573,-513.59038687,0.00024657,2]
[327916324,1716625854583,-500.0,0.00024657,2]
[327916325,1716625854592,-500.0,0.00024657,2]
[327916326,1716625854602,-500.0,0.00024657,2]
[327916327,1716625854612,-501.24666828,0.00024657,2]
[327916328,1716625854621,-500.0,0.00024657,2]
[327916329,1716625854630,-500.0,0.00024657,2]
[327916330,1716625854640,-512.07190323,0.00024657,2]
[327916331,1716625854649,-500.0,0.00024657,2]
[327916332,1716625854659,-500.0,0.00024657,2]
[327916333,1716625854668,-628.46971552,0.00024657,2]
[327916334,1716625854678,-505.78225325,0.00024657,2]
[327916335,1716625854689,-500.0,0.00024657,2]
[327916336,1716625854792,-500.0,0.00024657,2]
[327916337,1716625854803,-500.0,0.00024657,2]
[327916338,1716625854812,-500.0,0.00024657,2]
[327916339,1716625854823,-500.0,0.00024657,2]
[327916340,1716625854835,-160.52705596,0.00024657,2]
[327916341,1716625854845,-500.0,0.00024657,2]
[327916342,1716625854854,-500.0,0.00024657,2]
[327916343,1716625854864,-500.0,0.00024657,2]
[327916344,1716625854873,-500.0,0.00024657,2]
[327916345,1716625854883,-506.30546236,0.00024657,2]
[327916346,1716625854892,-500.0,0.00024657,2]
[327916347,1716625854903,-500.0,0.00024657,2]
[327916348,1716625854913,-500.0,0.00024657,2]
[327916349,1716625854924,-500.0,0.00024657,2]
[327916350,1716625854934,-500.0,0.00024657,2]
[327916351,1716625854943,-504.36850464,0.00024657,2]
[327916352,1716625854952,-500.0,0.00024657,2]
[327916353,1716625854961,-500.0,0.00024657,2]
[327916354,1716625854970,-503.44471183,0.00024657,2]
[327916355,1716625854980,-503.24876688,0.00024657,2]
[327916356,1716625854990,-500.0,0.00024657,2]
[327916357,1716625854999,-503.43774167,0.00024657,2]
[327916358,1716625855009,-721.25,0.00024657,2]
[327916359,1716625855019,-505.00585659,0.00024657,2]
[327916360,1716625855028,-505.36941056,0.00024657,2]
[327916361,1716625855038,-506.36801428,0.00024657,2]
[327916362,1716625855047,-503.61785528,0.00024657,2]
[327916363,1716625855056,-500.0,0.00024657,2]
[327916364,1716625855065,-502.6747145,0.00024657,2]
[327916365,1716625855074,-506.50283824,0.00024657,2]
[327916366,1716625855084,-502.47026663,0.00024657,2]
[327916367,1716625855094,-500.0,0.00024657,2]
[327916368,1716625855103,-500.0,0.00024657,2]
[327916369,1716625855113,-500.0,0.00024657,2]
[327916370,1716625855122,-505.90892706,0.00024657,2]
[327916371,1716625855131,-964.17,0.00024657,2]
[327916372,1716625855141,-500.0,0.00024657,2]
[327916373,1716625855151,-645.15619109,0.00024657,2]
[327916374,1716625855160,-505.77889403,0.00024657,2]
[327916375,1716625855169,-507.53708918,0.00024657,2]
[327916376,1716625855179,-505.04084676,0.00024657,2]
[327916377,1716625855188,-500.0,0.00024657,2]
[327916378,1716625855198,-500.0,0.00024657,2]
[327916379,1716625855208,-505.30535157,0.00024657,2]
[327916380,1716625855218,-506.14481639,0.00024657,2]
[327916381,1716625855228,-500.0,0.00024657,2]
[327916382,1716625855237,-536.36,0.00024657,2]
[327916383,1716625855247,-500.0,0.00024657,2]
[327916384,1716625855256,-500.0,0.00024657,2]
[327916385,1716625855266,-488.24995546,0.00024657,2]
[327916386,1716625855276,-500.0,0.00024657,2]
[327916387,1716625855285,-502.5017181,0.00024657,2]
[327916388,1716625855295,-502.2804755,0.00024657,2]
[327916389,1716625855304,-500.0,0.00024657,2]
[327916390,1716625855314,-503.76340924,0.00024657,2]
[327916391,1716625855324,-500.0,0.00024657,2]
[327916392,1716625855333,-504.259959,0.00024657,2]
[327916393,1716625855343,-500.0,0.00024657,2]
[327916394,1716625855352,-500.0,0.00024657,2]
[327916395,1716625855361,-500.0,0.00024657,2]
[327916396,1716625855371,-500.0,0.00024657,2]
[327916397,1716625855380,-504.02020996,0.00024657,2]
[327916398,1716625855389,-502.59650704,0.00024657,2]
[327916399,1716625855399,-503.01935184,0.00024657,2]
[327916400,1716625855409,-502.85935441,0.00024657,2]
[327916401,1716625855419,-505.84391929,0.00024657,2]
[327916402,1716625855428,-554.71,0.00024657,2]
[327916403,1716625855438,-500.0,0.00024657,2]
[327916404,1716625855447,-709.62,0.00024657,2]
[327916405,1716625855456,-501.16529136,0.00024657,2]
[327916406,1716625855466,-500.0,0.00024657,2]
[327916407,1716625855475,-552.08798087,0.00024657,2]
[327916408,1716625855484,-1003.78162705,0.00024657,2]
[327916409,1716625855494,-500.0,0.00024657,2]
[327916410,1716625855502,-501.40930726,0.00024657,2]
[327916411,1716625855512,-570.57,0.00024657,2]
[327916412,1716625855522,-500.0,0.00024657,2]
[327916413,1716625855531,-500.0,0.00024657,2]
[327916414,1716625855541,-502.23317557,0.00024657,2]
[327916415,1716625855551,-500.0,0.00024657,2]
[327916416,1716625855560,-502.40155979,0.00024657,2]
[327916417,1716625855569,-505.74105917,0.00024657,2]
[327916418,1716625855579,-500.0,0.00024657,2]
[327916419,1716625855588,-526.11,0.00024657,2]
[327916420,1716625855597,-244.47430749,0.00024657,2]
[327916421,1716625855606,-504.87719927,0.00024657,2]
[327916422,1716625855616,-500.0,0.00024657,2]
[327916423,1716625855625,-505.24775647,0.00024657,2]
[327916424,1716625855634,-500.0,0.00024657,2]
[327916425,1716625855643,-503.58689654,0.00024657,2]
[327916426,1716625855653,-505.70799426,0.00024657,2]
[327916427,1716625855663,-500.0,0.00024657,2]
[327916428,1716625855672,-502.16328156,0.00024657,2]
[327916429,1716625855681,-502.55549559,0.00024657,2]
[327916430,1716625855691,-206.03732662,0.00024657,2]
[327916431,1716625855700,-505.31779419,0.00024657,2]
[327916432,1716625855709,-500.0,0.00024657,2]
[327916433,1716625855718,-505.56895021,0.00024657,2]
[327916434,1716625855727,-504.56630359,0.00024657,2]
[327916435,1716625855737,-547.14,0.00024657,2]
[327916436,1716625855747,-503.83344909,0.00024657,2]
[327916437,1716625855757,-503.39972117,0.00024657,2]
[327916438,1716625855766,-392.17112716,0.00024657,2]
[327916439,1716625855775,-504.58819336,0.00024657,2]
[327916440,1716625855785,-502.649995,0.00024657,2]
[327916441,1716625855794,-505.46370396,0.00024657,2]
[327916442,1716625855803,-500.0,0.00024657,2]
[327916443,1716625855813,-500.51819477,0.00024657,2]
[327916444,1716625855827,-305.01221008,0.00024657,2]
[327916445,1716625855836,-500.0,0.00024657,2]
[327916446,1716625855845,-500.0,0.00024657,2]
[327916447,1716625855855,-504.24223173,0.00024657,2]
[327916448,1716625855865,-506.1593197,0.00024657,2]
[327916449,1716625855874,-501.91253912,0.00024657,2]
[327916450,1716625855884,-504.56849606,0.00024657,2]
[327916451,1716625855895,-510.82023342,0.00024657,2]
[327916452,1716625855904,-501.46239629,0.00024657,2]
[327916453,1716625855914,-547.16204039,0.00024657,2]
[327916454,1716625855923,-503.50323152,0.00024657,2]
[327916455,1716625855932,-549.56964145,0.00024657,2]
[327916456,1716625855943,-521.18,0.00024657,2]